Cogmind - Beta 12 @@@ ROGUE MODE // 2023.04.19 @ 18:04:47 Player: ZLD1 Result: Destroyed by G-34 Mercenary with Small Laser Performance ------------- Evolutions (1) 500 Regions Visited (3) 600 Robots Destroyed (10) 50 Value Destroyed (289) 289 Prototype IDs (2) 40 Alien Tech Used (0) 0 Bonus (50) 50 TOTAL SCORE: 1529 Bonus ------- Follower Combat Kills 50 Cogmind --------- Core Integrity 0/400 Matter 295/300 Energy 71/100 System Corruption 0% Temperature Warm (143) Movement Core (200) Ox3 Location -9/Storage Parts ------- > --- POWER (1) -------- (None) > --- PROPULSION (2) --- (None) > --- UTILITY (4) ------ Small Storage Unit Signal Interpreter Melee Analysis Suite > --- WEAPON (2) ------- Spread Laser Katana > --- INVENTORY (8) ---- Ion Engine Cooled Ion Engine Aluminum Leg Aluminum Leg Weight Redist. System Salvage Targeting Computer Grenade Launcher Peak State ------------ > --- POWER ------------ Cooled Ion Engine > --- PROPULSION ------- Aluminum Leg > --- UTILITY ---------- Small Storage Unit Signal Interpreter Melee Analysis Suite > --- WEAPON ----------- Light Assault Rifle Katana > --- INVENTORY -------- Ion Engine Cooled Ion Engine Weight Redist. System Salvage Targeting Computer Spread Laser Grenade Launcher [Rating: 14] Favorites ----------- Power Ion Engine Engine Ion Engine Propulsion Aluminum Leg Leg Aluminum Leg Utility Small Storage Unit Storage Small Storage Unit Processor Signal Interpreter Weapon Light Assault Rifle Energy Gun Spread Laser Ballistic Gun Light Assault Rifle Slashing Weapon Katana Build | -11 -10 -9 -9 ------- Run | Jun Mat Mat Sto Slots Evolved 2 | . . 2 . Power . | . . . . Propulsion . | . . . . Utility 2 | . . 2 . Weapon . | . . . . Parts Attached 13 | 6 1 . 6 Power 4 | 1 . . 3 Engine 4 | 1 . . 3 Core . | . . . . Reactor . | . . . . Propulsion 2 | 2 . . . Treads . | . . . . Leg 2 | 2 . . . Wheel . | . . . . Hover . | . . . . Flight . | . . . . Utility 3 | 1 1 . 1 Device . | . . . . Storage 1 | 1 . . . Processor 2 | . 1 . 1 Hackware . | . . . . Protection . | . . . . Artifact . | . . . . Weapon 4 | 2 . . 2 Energy Gun 1 | . . . 1 Energy Cannon . | . . . . Ballistic Gun 2 | 2 . . . Ballistic Cannon . | . . . . Launcher . | . . . . Special Weapon . | . . . . Impact Weapon . | . . . . Slashing Weapon 1 | . . . 1 Piercing Weapon . | . . . . Special Melee Weapon . | . . . . Unidentified Prototypes 2 | . . . 2 Parts Lost 6 | . . 2 4 Power 2 | . . 1 1 Propulsion 2 | . . 1 1 Utility . | . . . . Weapon 2 | . . . 2 Highest Loss Streak 3 | . . 2 3 To Critical Strikes . | . . . . Average Slot Usage (%) 71 | . 88 72 59 Engine 9 | . 14 8 7 Leg 16 | . 28 20 7 Storage 11 | . 14 11 11 Processor 11 | . 3 11 16 Ballistic Gun 19 | . 28 22 11 Slashing Weapon 2 | . . . 5 Naked Turns . | . . . . Heaviest Build 16 | 12 12 12 16 Greatest Support 20 | 20 20 20 10 Greatest Overweight (x) 4 | . . . 4 Average Overweight (x) . | . . . . Largest Inventory Capacity 8 | 8 8 8 8 Average Capacity 7 | 7 8 8 8 Most Carried 8 | 5 5 8 8 Average Carried 5 | 1 2 6 7 Final Capacity 8 | 8 8 8 8 Final Carried 8 | 1 5 8 7 Class Distribution -------------------- 100% | Mutant Dominant Class ---------------- Mutant | -10/Materials Mutant | -9/Materials Mutant | -9/Storage Resources | -11 -10 -9 -9 ----------- Run | Jun Mat Mat Sto Matter Collected 341 | 230 52 22 37 Remotely . | . . . . Salvage Created 317 | . 69 92 156 Parts 24 | . 12 4 8 Haulers Intercepted . | . . . . Recyclers Shooed . | . . . . Parts Field Recycled . | . . . . Retrieved Matter . | . . . . Parts Self-Destructed . | . . . . Prevented . | . . . . Kills | -11 -10 -9 -9 ------- Run | Jun Mat Mat Sto Combat Hostiles Destroyed 9 | . 3 2 4 Melee 4 | . . . 4 Guns 5 | . 3 2 . Classes Destroyed 4 | . 2 2 . Watcher 1 | . 1 . . Swarmer 3 | . 3 . . Grunt 5 | . . 1 4 Duelist 1 | . . 1 . Best Kill Streak 4 | . 4 2 4 Combat Bots Only 4 | . 3 2 4 Max Kills in Single Turn 1 | . 1 1 1 Gunslinging . | . . . . Exploded . | . . . . Melee 1 | . . . 1 Uniques/NPCs Destroyed . | . . . . Combat | -11 -10 -9 -9 -------- Run | Jun Mat Mat Sto Damage Taken 1128 | . 120 321 687 Core 429 | . 29 47 353 Absorbed by Shields . | . . . . Core Remaining (%) 94 | 100 88 . . Volleys Fired 29 | . 9 13 7 Largest 2 | . 2 2 2 Hottest 65 | . 40 40 65 Shots Fired 52 | . 18 26 8 Gun 52 | . 18 26 8 Cannon . | . . . . Launcher . | . . . . Special . | . . . . Kinetic 46 | . 18 26 2 Thermal 6 | . . . 6 Explosive . | . . . . Electromagnetic . | . . . . Robot Hit Streak 13 | . 5 8 13 Robot Miss Streak 5 | . 5 4 3 Penetration Max . | . . . . Secondary Targets 2 | . 1 1 . Max Gunslinging Chain 1 | . 1 1 . Shots Hit Robots 42 | . 9 16 17 Core Hits 26 | . 6 6 14 Critical Kills . | . . . . Critical Parts Destroyed . | . . . . Critical Strikes . | . . . . Melee Attacks 13 | . . . 13 Impact . | . . . . Slashing 13 | . . . 13 Piercing . | . . . . Sneak Attacks . | . . . . Combat Hostiles . | . . . . Follow-up Attacks . | . . . . Damage Inflicted 664 | . 81 123 460 Guns 315 | . 81 123 111 Cannons . | . . . . Explosions . | . . . . Melee 349 | . . . 349 Ramming . | . . . . Kinetic 204 | . 81 123 . Thermal 111 | . . . 111 Explosive . | . . . . Electromagnetic . | . . . . Impact . | . . . . Slashing 349 | . . . 349 Piercing . | . . . . Highest Corruption . | . . . . Average Corruption . | . . . . Corruption Purged . | . . . . Corruption Blocked . | . . . . Overload Shots . | . . . . Overflow Damage . | . . . . Projectiles . | . . . . Explosions . | . . . . Melee . | . . . . Knockbacks . | . . . . Impact . | . . . . Kinetic . | . . . . Secondary . | . . . . Self-Inflicted Damage . | . . . . Shots . | . . . . Rammed . | . . . . Targets Rammed . | . . . . Kicked . | . . . . Crushed . | . . . . Highest Temperature 128 | . . . 128 Average Temperature 69 | . . . 69 Received Heat Transfer 465 | . . 78 387 Siege Activations . | . . . . Robots Corrupted . | . . . . Combat Hostiles . | . . . . Parts Fried . | . . . . Impact Corruptions . | . . . . Robots Melted . | . . . . Combat Hostiles . | . . . . Parts Melted . | . . . . Heat Transferred 135 | . . . 135 Parts Sabotaged . | . . . . Parts Stolen . | . . . . Parts Stripped . | . . . . Power Chain Reactions . | . . . . Missiles Intercepted . | . . . . Alert | -11 -10 -9 -9 ------- Run | Jun Mat Mat Sto Peak Influence 147 | . 137 119 147 Initial 57 | . . 57 45 Average 64 | . 55 72 80 Maximum Alert Level . | . . . . Low Security (%) 100 | 100 100 100 100 Level 1 . | . . . . Level 2 . | . . . . Level 3 . | . . . . Level 4 . | . . . . Level 5 . | . . . . High Security . | . . . . Max Security . | . . . . Squads Dispatched 5 | . . 1 4 Investigation . | . . . . Extermination . | . . . . Reinforcement 3 | . . 1 2 Assault 2 | . . . 2 Garrison . | . . . . Intercept . | . . . . Searches Triggered . | . . . . Construction Impeded . | . . . . Haulers Reinforced . | . . . . Active Scanning Responses . | . . . . Cargo Convoy Interrupts . | . . . . Stealth | -11 -10 -9 -9 --------- Run | Jun Mat Mat Sto Distress Signals 1 | . 1 . . Communications Jammed . | . . . . Distress Signals . | . . . . Times Spotted 23 | . 5 4 14 Peak Tracking Total 9 | . 4 4 9 Tactical Retreats 3 | . 2 . 1 Traps | -11 -10 -9 -9 ------- Run | Jun Mat Mat Sto Traps Triggered . | . . . . Indirectly . | . . . . Trap Hack Attempts . | . . . . Triggered . | . . . . Disarmed . | . . . . Reprogrammed . | . . . . Reused . | . . . . Traps Extracted . | . . . . Installed . | . . . . Triggered . | . . . . Machines | -11 -10 -9 -9 ---------- Run | Jun Mat Mat Sto Machines Disabled . | . . . . Max in Single Turn . | . . . . Machines Repaired . | . . . . Machines Sabotaged . | . . . . Overloaded Fab Kills . | . . . . Hacking | -11 -10 -9 -9 --------- Run | Jun Mat Mat Sto Machines Accessed 1 | . . 1 . Terminals 1 | . . 1 . Fabricators . | . . . . Repair Stations . | . . . . Recycling Units . | . . . . Scanalyzers . | . . . . Garrison Access . | . . . . Total Hacks 1 | . . 1 . Successful 1 | . . 1 . Failed . | . . . . Catastrophic . | . . . . Database Lockouts . | . . . . Manual . | . . . . Terminals 1 | . . 1 . Fabricators . | . . . . Repair Stations . | . . . . Recycling Units . | . . . . Scanalyzers . | . . . . Garrison Access . | . . . . Terminal Hacks 1 | . . 1 . Branch Access Points 1 | . . 1 . Fabricator Hacks . | . . . . Repair Station Hacks . | . . . . Recycling Unit Hacks . | . . . . Scanalyzer . | . . . . Garrison Access Hacks . | . . . . Unauthorized Hacks . | . . . . Terminals . | . . . . Fabricators . | . . . . Repair Stations . | . . . . Recycling Units . | . . . . Scanalyzers . | . . . . Garrison Access . | . . . . Data Cores Recovered . | . . . . Used . | . . . . Hacking Detections 1 | . . 1 . Full Trace Events . | . . . . Feedback Events . | . . . . Feedback Blocked . | . . . . Robot Schematics Acquired . | . . . . Robots Built . | . . . . Authchips . | . . . . Time . | . . . . Total Robot Build Rating . | . . . . Part Schematics Acquired . | . . . . Parts Built . | . . . . Authchips . | . . . . Time . | . . . . Total Part Build Rating . | . . . . Parts Repaired . | . . . . Time . | . . . . Parts Recycled . | . . . . Recycled Matter . | . . . . Retrieved Matter . | . . . . Retrieved Components . | . . . . Parts Scanalyzed . | . . . . Part Schematics Acquired . | . . . . Parts Damaged . | . . . . Bothacking | -11 -10 -9 -9 ------------ Run | Jun Mat Mat Sto Used RIF Installer . | . . . . Robots Hacked . | . . . . Non-combat . | . . . . Combat . | . . . . Robot Hacks Applied . | . . . . Relay Couplers Released . | . . . . Fabnet Peak Effective % . | . . . . Robots Rewired . | . . . . Allies Hacked . | . . . . Hacks Repelled . | . . . . Allies | -11 -10 -9 -9 -------- Run | Jun Mat Mat Sto Total Allies 2 | . . . 2 Largest Group 2 | . . . 2 Highest-Rated Group 62 | . . . 62 Highest-Rated Ally 31 | . . . 31 Total Orders . | . . . . Ally Attacks 6 | . . . 6 Total Damage 107 | . . . 107 Kills 2 | . . . 2 Allies Corrupted . | . . . . Allies Melted . | . . . . Intel | -11 -10 -9 -9 ------- Run | Jun Mat Mat Sto Robot Analysis Total . | . . . . Derelict Logs Recovered . | . . . . Drone Launches . | . . . . Drone Recoveries . | . . . . Exploration | -11 -10 -9 -9 ------------- Run | Jun Mat Mat Sto Turns Passed 535 | 52 129 152 202 Spaces Moved 306 | 39 84 97 86 Core 22 | 10 . . 12 Treads . | . . . . Legs 284 | 29 84 97 74 Wheels . | . . . . Hover . | . . . . Flight . | . . . . Fastest Speed 50 | 50 120 120 120 Average Speed 128 | 102 120 120 157 Slowest Speed 250 | 120 120 120 250 Overloaded Moves . | . . . . Propulsion Burnouts . | . . . . Robots Hopped . | . . . . Cave-ins Triggered . | . . . . Exploration Rate (%) 14 | 4 21 10 21 Regions Visited 3 Branch Regions 1 Pre-discovered Areas . | . . . . Known Exits Taken 2 | . 1 1 . Unknown Exits Taken 1 | 1 . . . Scrap Searched . | . . . . Spaces Dug . | . . . . Terrain Destroyed . | . . . . Melee . | . . . . Projectile . | . . . . AOE . | . . . . Terrain Rammed . | . . . . Walls Destroyed . | . . . . Machines Disabled . | . . . . Actions | -11 -10 -9 -9 --------- Run | Jun Mat Mat Sto Total 386 | 50 98 112 126 Wait 8 | . . . 8 Move 303 | 38 83 96 86 Hop . | . . . . Pick Up 17 | 6 5 3 3 Fast Attach 4 | 1 . . 3 Attach 9 | 5 1 . 3 Detach . | . . . . Swap . | . . . . Drop 3 | . . . 3 Fire 29 | . 9 13 7 Melee 13 | . . . 13 Ram . | . . . . Kick . | . . . . Crush . | . . . . Escape Stasis . | . . . . Rewire . | . . . . Trap . | . . . . Miscellaneous . | . . . . Route ------- -11/Junkyard -10/Materials (discovered 2 exits: *Mat / [*Min]) -9/Materials (discovered 4 exits: Min x2 / *Sto x2) -9/Storage History --------- Turn | Location | Event 20 | -11/Junkyard | Discovered new exit (range 16) 53 | -11/Junkyard | Entered Materials 76 | -10/Materials | Discovered new exit (range 15) 128 | -10/Materials | Discovered new exit (range 8) 179 | -10/Materials | Identified exit to Materials 182 | -10/Materials | Entered another Materials area 182 | -9/Materials | Evolved 2 slots: Utility x2 219 | -9/Materials | Identified exit to Mines 219 | -9/Materials | Identified exit to Storage 304 | -9/Materials | Build established: Mutant 334 | -9/Materials | Entered Storage 390 | -9/Storage | Met a pair of Derelict thieves 480 | -9/Storage | Core integrity fell below 50% 491 | -9/Storage | Lost 3 parts (1n2w) 520 | -9/Storage | Core integrity fell below 20% 536 | -9/Storage | Destroyed by G-34 Mercenary with Small Laser Last Messages --------------- 00483_ M-13 Machinist repairs G-47 Trooper. 00485_ U-05 Engineer builds a Door. 00486_ K-01 Serf collects debris. 00489_ U-05 Engineer builds a Door. 00490_ K-01 Serf collects debris. 00491_ M-13 Machinist repairs G-47 Trooper. 00492_ K-01 Serf collects debris. 00493_ U-05 Engineer builds a Door. 00495_ K-01 Serf collects debris. 00496_ G-47 Trooper destroyed. 00499_ K-01 Serf collects debris. 00504_ Acquired Aluminum Leg. 00505_ Acquired 37 matter. 00505_ K-01 Serf collects debris. 00512_ Acquired Aluminum Leg. 00519_ K-01 Serf collects debris. 00520_ R-06 Scavenger collects Aluminum Leg. 00522_ K-01 Serf collects debris. 00529_ Cld. Ion Engine destroyed. 00532_ K-01 Serf collects debris. Map ----- +----------------------------------------------------+ | ?????????????????????????????? | | ?????????????????????????????? | | ?????????????????????????????? | | ?????????????????????????????? | | ?????????????????????????????? | | ?????????????????????????????? | | ?????????????????????????????? | | ?????????????????????????????? | | ?????????????????????????????? | | ?????????????????????????????? | | ?????????????????????????????? | | ????########?????????????????? | | ????# **#?????????????????? | | ????#* #?????????????????? | | ????# **#?????????????????? | | ????# #?????????????????? | | ????##" "###?????????????????? | | ????# T#??????????????????? | | ????# ##??????????????????? | | ########+############????????? | | #[% # %+% #????????? | | # * # # = !" #????????? | | # + *#[= "%" ##???????? | | # *gg#= [#%! "%" + ????? | | # %gm*=/%* #????????? | | # @#% *#%[ """"" #????????? | | # # # """"???????????? | | # # #? """"???????????? | | # # #??#####???????????? | | # k # #??########????????? | | # # #? #????????? | | ####### #? #????????? | | ??????# # #????????? | | ??????# # #????????? | | ? "???# + #????????? | | # ""??# # #????????? | | ? ""??# # #????????? | | # ?# #? #????????? | | # """?# #?####+####????????? | | # """ # #??????#???????????? | | # """ # ###########????????? | | # + + ##???????? | | # # # ""???????? | | # # # T????????? | | # ?# + """ ""???????????? | | #####?# # """ ""???????????? | | # ??# # """ ""???????????? | | # ?# # ???????????? | | # ?# # ??????????? | | #""" # #########+#????????? | +----------------------------------------------------+ Best States ------------- Heat Dissipation 28 Energy Generation 14 Energy Capacity 280 Matter Stores 300 Matter Capacity 300 Sight Range 16 Terrain Scan Density 10 Evasion (%) 55 Melee Accuracy 5 Item Schematics ----------------- None Robot Schematics ------------------ None Fabricated ------------ Nothing Alien Tech Used ----------------- None Achievements -------------- None Challenges ------------ None Game ------ Seed MobileSwarmLoader Manual? 0 Play Time 00:08:18 Cumulative 38.7 hours Start 2023.04.19 @ 17:56:53 End 2023.04.19 @ 18:04:47 Sessions 1 Manual Loads 0 Difficulty Rogue Special Mode None Game No. 89 Rogue 89 Adventurer 0 Explorer 0 Win Type - Total 0 Types 0/0/0/0/0/0/0/0/0 Lore% 24 Gallery% 39 Achievement% 29 Wizard Run 0 Options --------- ASCII 0 Keyboard 0 Movement Mouse Keybinds 0 Fullscreen 1 Font 24/Smallcaps Map View 64x52 Tactical HUD 1 Map Filters NONE Filters NONE Steam 1 RUN: f3b50f7e-1b0c-4f2d-bdaf-6b38d410cd9f